bitfinex/quotes_BTCUSD_20240703
["timestamp","ask_amount","ask_price","bid_price","bid_amount"]
[1720014011042,0.05167474,60601.0,60595.0,0.28661267]
[1720014011254,0.05167474,60600.0,60595.0,0.28661267]
[1720014011503,0.05167849,60599.0,60595.0,0.28661267]
[1720014011669,0.2652988,60605.0,60595.0,0.28661267]
[1720014011872,0.2652988,60605.0,60593.0,0.001113]
[1720014011873,0.1592,60603.0,60593.0,0.001113]
[1720014012144,0.3119795,60602.0,60593.0,0.001113]
[1720014012276,0.0516807,60601.0,60593.0,0.001113]
[1720014012458,0.0516807,60600.0,60593.0,0.001113]
[1720014012923,0.0516807,60600.0,60597.0,0.0396561]
[1720014013172,0.0516807,60599.0,60597.0,0.0396561]
[1720014013379,0.1,60602.0,60595.0,0.28661267]
[1720014013380,0.102,60602.0,60598.0,0.0396561]
[1720014013577,0.102,60602.0,60595.0,0.28661267]
[1720014013578,0.05119115,60601.0,60597.0,0.0396561]
[1720014013829,0.05119115,60601.0,60595.0,0.28661267]
[1720014013830,0.102,60602.0,60595.0,0.28661267]
[1720014014054,0.05101853,60601.0,60595.0,0.32626877]
[1720014014287,0.102,60602.0,60597.0,0.0396561]
[1720014014441,0.05101854,60601.0,60593.0,0.001113]
[1720014014650,0.21131734,60600.0,60593.0,0.001113]
[1720014014993,0.15101854,60599.0,60593.0,0.001113]
[1720014015197,0.05101854,60598.0,60593.0,0.001113]
[1720014015578,0.06367199,60598.0,60593.0,0.001113]
[1720014015952,0.06367199,60598.0,60597.0,0.002]
[1720014016415,0.06367199,60598.0,60593.0,0.001113]
[1720014016812,0.3665,60596.0,60593.0,0.005113]
[1720014017014,0.32397079,60595.0,60593.0,0.008113]
[1720014017251,0.18593931,60594.0,60593.0,0.004113]
[1720014017400,1.12575812,60594.0,60593.0,0.004113]
[1720014017603,1.22575812,60594.0,60593.0,0.004113]
[1720014017803,1.22575812,60594.0,60570.0,0.32626877]
[1720014017804,0.2005,60584.0,60570.0,0.32626877]
[1720014018063,0.295,60577.0,60570.0,0.0396561]
[1720014018266,0.16367199,60576.0,60570.0,0.0396561]
[1720014018447,0.06367199,60575.0,60570.0,0.0396561]
[1720014018670,0.06367199,60575.0,60568.0,0.28661267]
[1720014018671,0.3767,60573.0,60558.0,0.28661267]
[1720014018908,0.295,60564.0,60558.0,0.28661267]
[1720014019150,0.11265345,60563.0,60558.0,0.28661267]
[1720014019310,0.06300384,60562.0,60558.0,0.28661267]
[1720014019466,0.1,60563.0,60558.0,0.28661267]
[1720014019668,0.01165722,60562.0,60556.0,0.32626877]
[1720014019897,0.01165722,60562.0,60556.0,0.0396561]
[1720014019898,0.06822489,60562.0,60556.0,0.0396561]
[1720014020093,0.1985,60561.0,60556.0,0.0396561]
[1720014020285,0.36672489,60561.0,60556.0,0.0396561]
[1720014020468,0.31015722,60561.0,60556.0,0.0396561]
[1720014020691,0.31015722,60561.0,60560.0,0.0091]
[1720014020897,0.31015722,60561.0,60560.0,0.0001]
[1720014021070,0.69451415,60561.0,60560.0,0.0001]
[1720014021456,0.63775602,60561.0,60560.0,0.0001]
[1720014022183,0.63765602,60561.0,60560.0,0.0001]
[1720014022571,0.63765602,60561.0,60560.0,0.0121]
[1720014022984,0.6259988,60561.0,60560.0,0.0001]
[1720014023189,0.6445337,60561.0,60560.0,0.0001]
[1720014023427,0.6465337,60561.0,60560.0,0.0011]
[1720014023804,0.6445337,60561.0,60560.0,0.0001]
[1720014024219,0.6465337,60561.0,60560.0,0.0011]
[1720014024618,0.6445337,60561.0,60560.0,0.0001]
[1720014025811,0.64433981,60561.0,60560.0,0.0001]
[1720014026234,0.12044101,60561.0,60560.0,0.0011]
[1720014026431,0.12044101,60561.0,60560.0,0.32736877]
[1720014026630,0.12044101,60561.0,60560.0,0.54686877]
[1720014026631,0.1,60561.0,60560.0,0.54686877]
[1720014026833,0.1,60561.0,60560.0,0.50721267]
[1720014027087,0.102,60561.0,60560.0,0.50821267]
[1720014027637,0.1,60572.0,60562.0,0.28661267]
[1720014027896,0.17657054,60571.0,60562.0,0.28661267]
[1720014028098,0.11627174,60570.0,60562.0,0.28661267]
[1720014028301,0.01627174,60569.0,60562.0,0.28661267]
[1720014028698,0.01627174,60569.0,60562.0,0.32626877]
[1720014028853,0.01627174,60569.0,60567.0,0.0396561]
[1720014029067,0.3858,60578.0,60571.0,0.0396561]
[1720014029406,0.3858,60578.0,60569.0,0.0396561]
[1720014029407,0.17622471,60577.0,60569.0,0.0396561]
[1720014029619,0.01592591,60576.0,60569.0,0.0396561]
[1720014029825,0.01592591,60576.0,60575.0,0.0096561]
[1720014030020,0.01592591,60576.0,60573.0,0.0396561]
[1720014030176,0.01592591,60575.0,60574.0,0.32626877]
[1720014030385,0.3898,60585.0,60581.0,0.0396561]
[1720014030386,0.2143,60585.0,60581.0,0.0396561]
[1720014030581,0.01568887,60584.0,60577.0,0.0396561]
[1720014030785,0.01568887,60583.0,60577.0,0.0396561]
[1720014031007,0.01568887,60583.0,60576.0,0.28661267]
[1720014031008,0.01568887,60582.0,60581.0,0.0396561]
[1720014031213,0.01568887,60589.0,60580.0,0.28661267]
[1720014031409,0.01568887,60588.0,60581.0,0.0396561]
[1720014031615,0.01568887,60588.0,60580.0,0.32626877]
[1720014031813,0.01568887,60588.0,60581.0,0.0396561]
[1720014032029,0.1602988,60589.0,60581.0,0.0396561]
[1720014032200,0.01029862,60587.0,60581.0,0.0396561]
[1720014032570,0.002,60582.0,60581.0,0.0406561]
[1720014032784,0.0122986,60582.0,60581.0,0.50246877]
[1720014032954,0.002,60582.0,60581.0,0.50246877]
[1720014034109,0.3616,60595.0,60583.0,0.0396561]
[1720014034318,0.17059698,60594.0,60583.0,0.0396561]
[1720014034522,0.11029818,60593.0,60583.0,0.0396561]
[1720014034695,0.11029818,60593.0,60581.0,0.46281267]
[1720014034696,0.17059698,60592.0,60584.0,0.0396561]
[1720014034895,0.0165,60596.0,60581.0,0.1752]
[1720014034896,0.01029818,60591.0,60589.0,0.28661267]
[1720014035102,0.01029818,60590.0,60589.0,0.32626877]
[1720014035460,0.1,60596.0,60589.0,0.32626877]
[1720014035461,0.01029818,60595.0,60589.0,0.32626877]
[1720014035662,0.01029818,60594.0,60589.0,0.32626877]
[1720014035887,0.01029738,60593.0,60592.0,0.0396561]
[1720014036087,0.01029738,60593.0,60589.0,0.28661267]
[1720014036088,0.2117,60601.0,60594.0,0.0396561]
[1720014036287,0.2602988,60600.0,60594.0,0.0396561]
[1720014036491,0.01029705,60599.0,60594.0,0.0396561]
[1720014036688,0.17059585,60599.0,60594.0,0.0396561]
[1720014036892,0.01029705,60598.0,60594.0,0.0396561]
[1720014037091,0.11029705,60598.0,60595.0,0.0396561]
[1720014037336,0.01029705,60597.0,60595.0,0.0396561]
[1720014037958,0.01029705,60597.0,60591.0,0.0396561]
[1720014038172,0.01029705,60597.0,60594.0,0.001]
[1720014038820,0.1,60598.0,60592.0,0.0396561]
[1720014038821,0.01029729,60596.0,60592.0,0.0396561]
[1720014039051,0.01029729,60595.0,60594.0,0.0396561]
[1720014039316,0.0114,60606.0,60596.0,0.32626877]
[1720014039534,0.14768738,60617.0,60594.0,0.1602988]
[1720014039535,0.04847176,60615.0,60614.0,0.28661267]
[1720014039765,0.00836,60623.0,60616.0,0.28661267]
[1720014039974,0.01029165,60622.0,60617.0,0.32626877]
[1720014040179,0.00836,60623.0,60619.0,0.0396561]
[1720014040606,0.00836,60623.0,60620.0,0.0396561]
[1720014040796,0.00836,60623.0,60617.0,0.28661267]
[1720014041278,0.00836,60623.0,60619.0,0.0396561]
[1720014041500,0.00836,60623.0,60617.0,0.32626877]
[1720014041716,0.00836,60623.0,60618.0,0.0396561]
[1720014041941,0.00836,60623.0,60616.0,0.28661267]
[1720014042168,0.00836,60623.0,60614.0,0.28661267]
[1720014042403,0.2079,60622.0,60614.0,0.28661267]
[1720014042926,0.1,60621.0,60614.0,0.28661267]
[1720014043396,0.1,60621.0,60615.0,0.0396561]
[1720014043611,0.1,60621.0,60614.0,0.32626877]
[1720014044884,0.1,60621.0,60610.0,0.1739]
[1720014044885,0.1602988,60620.0,60610.0,0.1739]
[1720014045013,0.1602988,60620.0,60609.0,0.0396561]
[1720014045014,0.1,60619.0,60609.0,0.0396561]
[1720014045214,0.1602988,60618.0,60609.0,0.0396561]
[1720014045446,0.1,60617.0,60609.0,0.0396561]
[1720014045618,0.2602988,60617.0,60611.0,0.0396561]
[1720014046035,0.2602988,60617.0,60609.0,0.0396561]
[1720014046214,0.295,60615.0,60600.0,0.28661267]
[1720014046423,0.295,60615.0,60597.0,0.28661267]
[1720014046424,0.1641,60612.0,60597.0,0.28661267]
[1720014046672,0.1602988,60611.0,60609.0,0.001]
[1720014046887,0.1,60610.0,60609.0,0.003]
[1720014047060,0.1,60610.0,60605.0,0.0396561]
[1720014047275,0.1,60610.0,60604.0,0.28661267]
[1720014047482,0.2602988,60610.0,60601.0,0.32626877]
[1720014047660,0.2602988,60610.0,60605.0,0.0396561]
[1720014047869,0.2602988,60610.0,60603.0,0.0396561]
[1720014048097,0.1,60610.0,60605.0,0.28661267]
[1720014048270,0.2602988,60610.0,60601.0,0.32626877]
[1720014049027,0.2602988,60610.0,60601.0,0.0396561]
[1720014049431,0.2602988,60610.0,60601.0,0.32626877]
[1720014049634,0.2602988,60610.0,60605.0,0.001]
[1720014049635,0.3855,60608.0,60605.0,0.001]
[1720014049839,0.295,60606.0,60605.0,0.001]
[1720014050033,0.5552988,60606.0,60605.0,0.001]
[1720014050265,0.2602988,60606.0,60605.0,0.001]
[1720014050393,0.2602988,60606.0,60597.0,0.0396561]
[1720014050627,0.2602988,60606.0,60593.0,0.36676849]
[1720014050628,0.1,60605.0,60604.0,0.0396561]
[1720014050857,0.1,60605.0,60601.0,0.0396561]
[1720014051012,0.1,60605.0,60604.0,0.0396561]
[1720014051433,0.2202,60608.0,60604.0,0.0396561]
[1720014051635,0.1,60607.0,60606.0,0.0396561]
[1720014051871,0.1,60607.0,60605.0,0.0396561]
[1720014052626,0.1,60607.0,60593.0,0.11015582]
[1720014052627,0.1,60607.0,60606.0,0.0396561]
[1720014052838,0.1,60607.0,60602.0,0.1587]
[1720014053017,0.002,60610.0,60603.0,0.0396561]
[1720014053217,0.1622988,60610.0,60603.0,0.0396561]
[1720014053630,0.1602988,60610.0,60603.0,0.0396561]
[1720014053838,0.003,60605.0,60604.0,0.001]
[1720014054216,0.003,60605.0,60604.0,0.0406561]
[1720014054468,0.1602988,60610.0,60604.0,0.0396561]
[1720014054595,0.1,60609.0,60604.0,0.0396561]
[1720014054795,0.1,60609.0,60603.0,0.0396561]
[1720014055469,0.1,60609.0,60601.0,0.32626877]
[1720014055689,0.1,60609.0,60604.0,0.004]
[1720014055917,0.1617,60607.0,60604.0,0.004]
[1720014056079,0.295,60605.0,60604.0,0.004]
[1720014056288,0.5552988,60605.0,60604.0,0.004]
[1720014057050,0.5552988,60605.0,60604.0,0.008]
[1720014057496,0.5552988,60605.0,60604.0,0.004]
[1720014057652,0.5552988,60605.0,60590.0,0.28661267]
[1720014057653,0.5552988,60605.0,60598.0,0.0396561]
[1720014057871,0.2602988,60604.0,60598.0,0.0396561]
[1720014058073,0.2602988,60604.0,60599.0,0.0396561]
[1720014058323,0.2602988,60604.0,60597.0,0.0396561]
[1720014058526,0.2602988,60604.0,60595.0,0.0396561]
[1720014058929,0.2602988,60604.0,60599.0,0.0396561]
[1720014059125,0.2602988,60604.0,60598.0,0.0396561]
[1720014059580,0.2602988,60604.0,60601.0,0.0396561]
[1720014059581,0.1,60604.0,60601.0,0.0396561]
[1720014059920,0.1,60611.0,60598.0,0.32626877]
[1720014060124,0.18723498,60610.0,60598.0,0.32626877]
[1720014060344,0.005,60605.0,60598.0,0.32626877]
[1720014060729,0.1,60609.0,60601.0,0.0396561]
[1720014060914,0.18710541,60608.0,60601.0,0.0396561]
[1720014061119,0.002,60604.0,60601.0,0.0396561]
[1720014061342,0.005,60604.0,60601.0,0.0396561]
[1720014061544,0.005,60604.0,60603.0,0.0396561]
[1720014061860,0.1,60607.0,60601.0,0.0396561]
[1720014062032,0.1602988,60606.0,60596.0,0.0396561]
[1720014062234,0.1,60605.0,60597.0,0.0396561]
[1720014062467,0.1602988,60604.0,60596.0,0.0396561]
[1720014062678,0.1,60603.0,60594.0,0.0396561]
[1720014062884,0.1946,60601.0,60591.0,0.0396561]
[1720014063065,0.295,60599.0,60594.0,0.0396561]
[1720014063291,0.3548988,60601.0,60595.0,0.0396561]
[1720014063495,0.1,60600.0,60597.0,0.0396561]
[1720014064229,0.1,60600.0,60599.0,0.0396561]
[1720014064862,0.1,60600.0,60598.0,0.0396561]
[1720014065251,0.1,60600.0,60597.0,0.000913]
[1720014065252,0.102,60600.0,60597.0,0.000913]
[1720014065361,0.105,60600.0,60599.0,0.0096561]
[1720014065570,0.105,60600.0,60599.0,0.0396561]
[1720014065818,0.105,60600.0,60599.0,0.2062561]
[1720014066014,0.003,60600.0,60599.0,0.2062561]
[1720014066475,0.00083,60608.0,60599.0,0.2062561]
[1720014066680,0.18662589,60607.0,60603.0,0.0396561]
[1720014066855,0.02632709,60606.0,60601.0,0.0396561]
[1720014067049,0.28662589,60606.0,60601.0,0.0396561]
[1720014067254,0.02632709,60605.0,60601.0,0.0396561]
[1720014067455,0.02662614,60604.0,60601.0,0.0396561]
[1720014067697,0.1,60605.0,60604.0,0.0396561]
[1720014067848,0.12690109,60605.0,60599.0,0.2062561]
[1720014068049,0.02690109,60604.0,60599.0,0.2062561]
[1720014068463,0.001,60600.0,60599.0,0.2062561]
[1720014068660,0.2672988,60605.0,60599.0,0.2062561]
[1720014068869,0.02680287,60604.0,60603.0,0.0396561]
[1720014069046,0.107,60605.0,60604.0,0.0396561]
[1720014069047,0.007,60605.0,60604.0,0.0396561]
[1720014069281,0.02514443,60608.0,60605.0,0.0396561]
[1720014069479,0.02514443,60608.0,60607.0,0.0396561]
[1720014070365,0.00083,60608.0,60607.0,0.32626877]
[1720014070774,0.00083,60608.0,60607.0,0.70186877]
[1720014072379,0.00083,60608.0,60607.0,0.70786877]
[1720014073344,0.00083,60608.0,60607.0,0.73786877]
[1720014073556,0.00083,60608.0,60607.0,0.74286877]
[1720014073755,0.00083,60608.0,60607.0,0.90316757]
[1720014074357,0.00083,60608.0,60607.0,0.98332339]
[1720014076576,0.00083,60608.0,60607.0,0.71286877]
[1720014076991,0.00083,60608.0,60607.0,0.74286877]
[1720014077382,0.00083,60608.0,60607.0,0.71286877]
[1720014078046,0.01112291,60608.0,60607.0,0.71286877]
[1720014078230,0.01112266,60608.0,60607.0,0.33726877]
[1720014080280,0.01306854,60608.0,60607.0,0.33726877]
[1720014083391,0.01335426,60608.0,60607.0,0.33726877]
[1720014084312,0.01335426,60608.0,60607.0,0.011]
[1720014084700,0.06476885,60608.0,60607.0,0.011]
[1720014084832,0.16476885,60608.0,60607.0,0.011]
[1720014085257,0.16476885,60608.0,60607.0,0.0506561]
[1720014085667,0.16476885,60608.0,60607.0,0.0446561]
[1720014085884,0.16476885,60608.0,60607.0,0.005]
[1720014086094,0.16476885,60608.0,60607.0,0.006]
[1720014086661,0.44285514,60608.0,60607.0,0.006]
[1720014086779,0.46756401,60608.0,60607.0,0.005]
[1720014086980,0.46756401,60608.0,60599.0,0.0002]
[1720014086981,0.3440344,60608.0,60599.0,0.0002]
[1720014087200,0.2359,60604.0,60599.0,0.0002]
[1720014087399,0.28179681,60603.0,60599.0,0.0002]
[1720014087599,0.0829056,60602.0,60601.0,0.0396561]
[1720014088511,0.0829056,60602.0,60601.0,0.32626877]
[1720014089636,0.09889121,60604.0,60602.0,0.49346877]
[1720014089637,0.1,60603.0,60602.0,0.49346877]
[1720014089807,0.19890397,60605.0,60604.0,0.32626877]
[1720014090008,0.18190675,60605.0,60604.0,0.32626877]
[1720014090791,0.08190675,60605.0,60604.0,0.32626877]
[1720014090991,0.1,60606.0,60605.0,0.35626877]
[1720014091204,0.1,60607.0,60606.0,0.35626877]
[1720014091404,0.08354535,60607.0,60606.0,0.35626877]
[1720014091606,0.02270759,60607.0,60606.0,0.35626877]
[1720014092909,0.00083,60608.0,60607.0,0.35626877]
[1720014093135,0.00083,60608.0,60607.0,0.56646877]
[1720014093349,0.00083,60608.0,60607.0,0.53646877]
[1720014093516,0.00083,60608.0,60607.0,0.56646877]
[1720014093739,0.00083,60608.0,60607.0,0.53646877]
[1720014093940,0.0230566,60608.0,60607.0,0.53646877]
[1720014096176,0.01228809,60608.0,60607.0,0.53646877]
[1720014096377,0.05045552,60608.0,60607.0,0.53646877]
[1720014096783,0.11102297,60608.0,60607.0,0.53646877]
[1720014096980,0.21102297,60608.0,60607.0,0.53646877]
[1720014097182,0.21202297,60608.0,60607.0,0.53646877]
[1720014097761,0.21202297,60608.0,60607.0,0.32626877]
[1720014098744,0.28491848,60613.0,60611.0,0.0396561]
[1720014098859,0.1613,60613.0,60612.0,0.0396561]
[1720014099055,0.1613,60613.0,60612.0,0.32626877]
[1720014099261,0.12361848,60614.0,60613.0,0.32626877]
[1720014099511,0.2702,60617.0,60613.0,0.32626877]
[1720014099722,0.1,60617.0,60615.0,0.0396561]
[1720014099887,0.41346,60626.0,60619.0,0.0396561]
[1720014100099,0.14830259,60625.0,60619.0,0.0396561]
[1720014100301,0.14830259,60625.0,60615.0,0.32626877]
[1720014100481,0.12357926,60620.0,60615.0,0.32626877]
[1720014100688,0.12357926,60619.0,60615.0,0.32626877]
[1720014101021,0.1,60618.0,60615.0,0.32626877]
[1720014101229,0.22357926,60618.0,60615.0,0.0396561]
[1720014101404,0.12357926,60616.0,60615.0,0.0396561]
[1720014101604,0.1,60616.0,60615.0,0.0396561]
[1720014102058,0.1,60616.0,60615.0,0.0406561]
[1720014102266,0.1,60616.0,60615.0,0.0396561]
[1720014102607,0.1,60616.0,60615.0,0.0406561]
[1720014103027,0.22358883,60616.0,60615.0,0.0406561]
[1720014103231,0.1,60616.0,60615.0,0.0406561]
[1720014103745,0.12360767,60616.0,60615.0,0.0406561]
[1720014103912,0.22360767,60616.0,60615.0,0.0406561]
[1720014104138,0.23160767,60616.0,60615.0,0.0406561]
[1720014104455,0.23360767,60616.0,60615.0,0.002]
[1720014104657,0.6565988,60616.0,60615.0,0.002]
[1720014104909,0.6565988,60616.0,60607.0,0.000913]
[1720014104910,0.97625271,60616.0,60607.0,0.000913]
[1720014105103,0.2359,60608.0,60607.0,0.000913]
[1720014105353,0.8781988,60608.0,60607.0,0.000913]
[1720014105548,0.8781988,60608.0,60607.0,1e-06]
[1720014105951,0.96734368,60608.0,60607.0,1e-06]
[1720014106163,1.13429643,60608.0,60607.0,0.001001]
[1720014106526,1.13428954,60608.0,60607.0,0.001001]
[1720014106727,1.46951694,60608.0,60607.0,1e-06]
[1720014106929,1.49251694,60608.0,60607.0,1e-06]
[1720014107494,0.3,60602.0,60588.0,0.28661267]
[1720014107683,0.2359,60600.0,60588.0,0.28661267]
[1720014107825,0.20431704,60599.0,60588.0,0.28661267]
[1720014108041,0.20431704,60599.0,60582.0,0.08015582]
[1720014108042,0.14401824,60598.0,60585.0,0.28661267]
[1720014108294,0.68111704,60598.0,60585.0,0.28661267]
[1720014108448,0.8480622,60598.0,60585.0,0.28661267]
[1720014108828,0.8480622,60598.0,60582.0,0.28661267]
[1720014108829,0.3769,60597.0,60582.0,0.28661267]
[1720014109034,0.2359,60590.0,60582.0,0.76754761]
[1720014109240,0.2359,60590.0,60582.0,0.28661267]
[1720014109241,0.54457613,60590.0,60582.0,0.28661267]
[1720014109437,0.46937438,60590.0,60582.0,0.28661267]
[1720014110425,0.57637438,60590.0,60589.0,0.0011]
[1720014111679,0.58337438,60590.0,60589.0,0.0011]
[1720014111880,0.18717558,60590.0,60589.0,0.0011]
[1720014112083,0.08717558,60590.0,60589.0,0.0407561]
[1720014112282,0.107,60590.0,60589.0,0.0407561]
[1720014112537,0.18412856,60590.0,60589.0,0.0011]
[1720014112745,0.17712856,60590.0,60589.0,0.0001]
[1720014112866,0.16778467,60590.0,60589.0,0.0397561]
[1720014113222,0.16778467,60590.0,60589.0,0.32636877]
[1720014113223,0.18412015,60590.0,60589.0,0.32636877]
[1720014113430,0.07712015,60590.0,60589.0,0.32636877]
[1720014113670,0.12233548,60590.0,60589.0,0.32636877]
[1720014113902,0.1766936,60590.0,60589.0,0.32636877]
[1720014114320,0.1826936,60590.0,60589.0,0.32636877]
[1720014114523,0.1826936,60590.0,60589.0,0.0001]
[1720014114729,0.5919924,60590.0,60589.0,0.0001]
[1720014114950,0.9278924,60590.0,60589.0,0.0001]
[1720014115371,0.9278924,60590.0,60580.0,0.28661267]
[1720014115372,0.9277924,60590.0,60580.0,0.28661267]
[1720014115553,0.2359,60584.0,60580.0,0.28661267]
[1720014115685,0.14451474,60583.0,60580.0,0.28661267]
[1720014115888,0.05481342,60582.0,60578.0,0.28661267]
[1720014116208,0.05481849,60581.0,60578.0,0.28661267]
[1720014116408,0.1,60583.0,60578.0,0.28661267]
[1720014116409,0.05481849,60580.0,60578.0,0.28661267]
[1720014116612,0.01029868,60579.0,60578.0,0.28661267]
[1720014116808,0.05512905,60583.0,60580.0,0.0396561]
[1720014117028,0.01029875,60582.0,60581.0,0.0396561]
[1720014117185,0.01029875,60582.0,60581.0,0.32626877]
[1720014117412,0.2359,60594.0,60587.0,0.32626877]
[1720014117413,0.12345283,60592.0,60587.0,0.32626877]
[1720014117590,0.12345283,60593.0,60587.0,0.32626877]
[1720014118014,0.3723,60594.0,60587.0,0.28661267]
[1720014118015,0.006,60590.0,60587.0,0.28661267]
[1720014118275,0.1602988,60589.0,60583.0,0.0396561]
[1720014118415,0.1602988,60589.0,60581.0,0.28661267]
[1720014118614,0.1602988,60589.0,60579.0,0.0396561]
[1720014118615,0.1601988,60589.0,60579.0,0.0396561]
[1720014119071,0.1,60588.0,60581.0,0.28661267]
[1720014119426,0.1602988,60587.0,60578.0,0.28661267]
[1720014119648,0.1,60586.0,60578.0,0.28661267]
[1720014120621,0.1,60586.0,60581.0,0.001]
[1720014120828,0.1,60586.0,60578.0,0.28661267]
[1720014121233,0.106,60586.0,60579.0,0.0396561]
[1720014121436,0.106,60586.0,60578.0,0.28761267]
[1720014122280,0.1059,60586.0,60578.0,0.28761267]
[1720014122550,0.1059,60586.0,60580.0,0.0396561]
[1720014122747,0.1099,60586.0,60578.0,0.28761267]
[1720014122980,0.1039,60586.0,60578.0,0.28661267]
[1720014123401,0.1099,60586.0,60581.0,0.001]
[1720014123859,0.1039,60586.0,60579.0,0.0396561]
[1720014124079,0.1099,60586.0,60579.0,0.0396561]
[1720014124296,0.1099,60586.0,60578.0,0.28761267]
[1720014124518,0.1039,60586.0,60578.0,0.28661267]
[1720014124743,0.1099,60586.0,60581.0,0.001]
[1720014125670,0.1058,60586.0,60581.0,0.001]
[1720014126612,0.1058,60586.0,60584.0,0.0396561]
[1720014126834,0.1058,60586.0,60581.0,0.28761267]
[1720014126835,0.011,60586.0,60585.0,0.0396561]
[1720014127052,0.011,60586.0,60585.0,0.32626877]
[1720014127268,0.006,60586.0,60585.0,0.32626877]
[1720014127714,0.01629741,60586.0,60585.0,0.28661267]
[1720014128583,0.01029741,60586.0,60585.0,0.28661267]
[1720014128804,0.02029741,60586.0,60585.0,0.28661267]
[1720014129307,0.02029741,60586.0,60580.0,0.28661267]
[1720014129308,0.04992148,60586.0,60580.0,0.28661267]
[1720014129520,0.40631961,60585.0,60580.0,0.28661267]
[1720014129736,0.1,60584.0,60580.0,0.28661267]
[1720014130195,0.1,60584.0,60580.0,0.32626877]
[1720014130421,0.1,60584.0,60581.0,0.0396561]
[1720014130672,0.01029827,60583.0,60581.0,0.0396561]
[1720014130894,0.01029827,60583.0,60580.0,0.32626877]
[1720014131111,0.0059,60586.0,60583.0,0.0396561]
[1720014131324,0.01029827,60585.0,60580.0,0.32626877]
[1720014131541,0.006,60586.0,60585.0,0.001]
[1720014131988,0.006,60586.0,60580.0,0.32626877]
[1720014131989,0.04982752,60586.0,60580.0,0.28661267]
[1720014132199,0.01029827,60585.0,60580.0,0.28661267]
[1720014132413,0.002,60583.0,60580.0,0.32626877]
[1720014132629,0.1,60588.0,60580.0,0.28661267]
[1720014132630,0.01029827,60582.0,60580.0,0.28661267]
[1720014132927,0.1,60588.0,60580.0,0.28661267]
[1720014132928,0.003,60585.0,60580.0,0.28661267]
[1720014133139,0.03944335,60584.0,60580.0,0.28661267]
[1720014133342,0.03944335,60583.0,60580.0,0.28661267]
[1720014133577,0.1,60588.0,60580.0,0.28661267]
[1720014133795,0.03811643,60587.0,60580.0,0.28661267]
[1720014134025,0.001,60583.0,60580.0,0.28661267]
[1720014134466,0.03811643,60582.0,60581.0,0.0396561]
[1720014134893,0.03811643,60582.0,60580.0,0.32626877]
[1720014135122,0.03811643,60581.0,60580.0,0.32626877]
[1720014135524,0.002,60583.0,60580.0,0.28661267]
[1720014135740,0.03801643,60582.0,60580.0,0.28661267]
[1720014136146,0.03801643,60582.0,60581.0,0.0396561]
[1720014136523,0.2672988,60588.0,60583.0,0.0396561]
[1720014136719,0.2672988,60588.0,60580.0,0.28661267]
[1720014137133,0.2602988,60588.0,60580.0,0.28661267]
[1720014137698,0.2602988,60588.0,60578.0,0.28661267]
[1720014137699,0.1602988,60587.0,60578.0,0.28661267]
[1720014137906,0.2362,60582.0,60578.0,0.28661267]
[1720014138143,0.1,60581.0,60578.0,0.28661267]
[1720014138638,0.1,60581.0,60574.0,0.28661267]
[1720014139100,0.0999,60581.0,60574.0,0.28661267]
[1720014139763,0.0999,60581.0,60578.0,0.001]
[1720014140035,0.2362,60579.0,60578.0,0.00095828]
[1720014140227,0.7532988,60579.0,60578.0,2.8e-07]
[1720014140484,0.83852281,60579.0,60578.0,2.8e-07]
[1720014140706,1.16152281,60579.0,60563.0,0.28661267]
[1720014140917,0.2362,60565.0,60563.0,0.28661267]
[1720014141132,0.1,60564.0,60563.0,0.28661267]
[1720014143018,0.1,60564.0,60563.0,0.32626877]
[1720014143218,0.0999,60564.0,60563.0,0.32626877]
[1720014144096,0.2362,60570.0,60563.0,0.32626877]
[1720014144291,0.0382996,60569.0,60563.0,0.32626877]
[1720014144495,0.0382996,60568.0,60563.0,0.28661267]
[1720014144698,0.0382996,60567.0,60563.0,0.28661267]
[1720014144897,0.0382996,60566.0,60562.0,0.28661267]
[1720014145183,0.2744996,60565.0,60560.0,0.28671267]
[1720014145496,0.1985984,60564.0,60560.0,0.0001]
[1720014145712,0.1569,60562.0,60560.0,0.0001]
[1720014146016,0.30890145,60561.0,60560.0,0.0001]
[1720014146591,0.30880145,60561.0,60560.0,0.0001]
[1720014146750,0.2601988,60561.0,60553.0,0.28661267]
[1720014146954,0.2362,60555.0,60553.0,0.28661267]
[1720014147158,0.0999,60554.0,60553.0,0.28661267]
[1720014147657,0.13837781,60554.0,60551.0,0.002]
[1720014148032,0.03857781,60553.0,60551.0,0.002]
[1720014148232,0.0998,60554.0,60551.0,0.002]
[1720014148455,0.2021,60553.0,60551.0,0.002]
[1720014149593,0.2600988,60554.0,60551.0,0.002]
[1720014149791,0.006,60553.0,60551.0,0.002]
[1720014149993,0.006,60553.0,60552.0,0.40642459]
[1720014150243,0.006,60553.0,60552.0,0.77562459]
[1720014150450,0.2362,60559.0,60558.0,0.28661267]
[1720014150623,0.3596024,60559.0,60558.0,0.28661267]
[1720014151009,0.3596024,60559.0,60553.0,0.28661267]
[1720014151204,0.1,60558.0,60553.0,0.28661267]
[1720014151525,0.1,60558.0,60551.0,0.002]
[1720014151526,0.2362,60554.0,60551.0,0.002]
[1720014151951,0.1,60553.0,60551.0,0.002]
[1720014153662,0.1602988,60552.0,60551.0,0.002]
[1720014153846,0.2602988,60552.0,60551.0,0.002]
[1720014154049,0.2601988,60552.0,60551.0,0.002]
[1720014154623,0.2600988,60552.0,60551.0,0.002]
[1720014155440,0.01338733,60549.0,60545.0,1e-06]
[1720014155592,0.01338733,60549.0,60530.0,0.009163]
[1720014155593,0.2076,60543.0,60530.0,0.009163]
[1720014155787,0.2362,60533.0,60530.0,0.009163]
[1720014155988,0.34650697,60533.0,60530.0,0.009163]
[1720014157041,0.34650697,60533.0,60531.0,0.28861267]
[1720014157804,0.34650697,60533.0,60532.0,0.0488521]
[1720014157973,0.11020697,60533.0,60532.0,0.0488521]
[1720014158206,0.01030697,60533.0,60532.0,0.009196]
[1720014158353,0.01030697,60537.0,60532.0,0.0488521]
[1720014158558,0.01436315,60536.0,60534.0,0.32626877]
[1720014158889,0.01436315,60535.0,60534.0,0.28661267]
[1720014159588,0.01436315,60539.0,60534.0,0.28661267]
[1720014159825,0.01436315,60538.0,60534.0,0.28661267]
[1720014159956,0.2362,60536.0,60532.0,0.0498521]
[1720014160156,0.11436315,60535.0,60532.0,0.010196]
[1720014160360,0.2362,60533.0,60532.0,0.010196]